Workbook

Sheet DATI BURZ ET AL 2019
A1: Burz et al., 2019, PROCESSO CON CRIOPROTETTORE-ANA | H1: Burz et al., 2019, PROCESSO SENZA CRIOPROTETTORE-ANA | N1: Burz et al., 2019, SIMULAZIONE PROCESSO 1 EUBIOME | T1: Burz et al., 2019, SIMULAZIONE PROCESSO 2 EUBIOME
A2: FECI | B2: NON VITALI | C2: VITALI | H2: FECI | I2: NON VITALI | J2: VITALI | N2: FECI | O2: NON VITALI | P2: VITALI | T2: FECI | U2: NON VITALI | V2: VITALI
B3: =1-C3 -> 0.25 | C3: 0.75 | I3: =1-J3 -> 0.25 | J3: 0.75 | O3: =1-P3 -> 0.25 | P3: 0.75 | U3: =1-V3 -> 0.25 | V3: 0.75
B4: Perdita iniziale | E4: =B3 -> 0.25 | I4: Perdita iniziale | L4: =I3 -> 0.25 | O4: Perdita iniziale | R4: =O3 -> 0.25 | U4: Perdita iniziale | X4: =U3 -> 0.25
A6: CONG | B6: NON VITALI | C6: VITALI | H6: CONG | I6: NON VITALI | J6: VITALI | N6: PRIMO CONG | O6: NON VITALI | P6: VITALI | T6: PRIMO CONG | U6: NON VITALI | V6: VITALI
B7: =1-C7 -> 0.4 | C7: 0.6 | I7: =1-J7 -> 0.7 | J7: 0.3 | O7: =1-P7 -> 0.7 | P7: =(1-R8)*P3 -> 0.3 | U7: =1-V7 -> 0.4 | V7: =(1-X8)*V3 -> 0.6
B8: Perdita congelamento con crioprotettore | E8: =(C3-C7)/C3 -> 0.2 | I8: Perdita congelamento senza crioprotettore | L8: =(J3-J7)/J3 -> 0.6 | O8: Perdita congelamento senza crioprotettore | R8: =L8 -> 0.6 | U8: Perdita congelamento con crioprotettore | X8: =E8 -> 0.2
A10: LIO | B10: NON VITALI | C10: VITALI | H10: LIO | I10: NON VITALI | J10: VITALI | N10: DOPPIO CONG | O10: NON VITALI | P10: VITALI | T10: DOPPIO CONG | U10: NON VITALI | V10: VITALI
B11: =1-C11 -> 0.6 | C11: 0.4 | I11: =1-J11 -> 0.915 | J11: 0.085 | O11: =1-P11 -> 0.76 | P11: =(1-R12)*P7 -> 0.24 | U11: =1-V11 -> 0.52 | V11: =(1-X12)*V7 -> 0.48
B12: Perdita liofilizzazione con crioprotettore | E12: =(C7-C11)/C7 -> 0.3333333333 | I12: Perdita liofilizzazione senza crioprotettore | L12: =(J7-J11)/J7 -> 0.7166666667 | O12: Perdita congelamento con crioprotettore | R12: =E8 -> 0.2 | U12: Perdita congelamento con crioprotettore | X12: =E8 -> 0.2
A14: 10 MESI T° AMB | B14: NON VITALI | C14: VITALI | N14: LIO | O14: NON VITALI | P14: VITALI | T14: LIO | U14: NON VITALI | V14: VITALI
B15: =1-C15 -> 0.75 | C15: 0.25 | O15: =1-P15 -> 0.84 | P15: =(1-R16)*P11 -> 0.16 | U15: =1-V15 -> 0.68 | V15: =(1-X16)*V11 -> 0.32
B16: =1-C16 -> 0.7 | C16: 0.3 | O16: Perdita liofilizzazione con crioprotettore | R16: =E12 -> 0.3333333333 | U16: Perdita liofilizzazione con crioprotettore | X16: =E12 -> 0.3333333333
B17: Perdita stoccaggio 10 mesi | E17: =(C11-C15)/C11 -> 0.375
E18: =(C11-C16)/C11 -> 0.25
N19: 10 MESI T° AMB | O19: NON VITALI | P19: VITALI | T19: 10 MESI T° AMB | U19: NON VITALI | V19: VITALI
O20: =1-P20 -> 0.9 | P20: =(1-R22)*P15 -> 0.1 | U20: =1-V20 -> 0.8 | V20: =(1-X22)*V15 -> 0.2
O21: =1-P21 -> 0.88 | P21: =(1-R23)*P15 -> 0.12 | U21: =1-V21 -> 0.76 | V21: =(1-X23)*V15 -> 0.24
O22: Perdita stoccaggio 10 mesi | R22: =E17 -> 0.375 | U22: Perdita stoccaggio 10 mesi | X22: =E17 -> 0.375
R23: =E18 -> 0.25 | X23: =E18 -> 0.25

Sheet DATI PAPANICOLAS ET AL, 2019
A1: Papanicolas et al., 2019, PROCESSO CON CRIOPROTETTORE-ANA | H1: Papanicolas et al., 2019, PROCESSO SENZA CRIOPROTETTORE-AEROBIOSI
A2: FECI | B2: NON VITALI | C2: VITALI | H2: FECI | I2: NON VITALI | J2: VITALI
B3: =1-C3 -> 0.5 | C3: 0.5 | I3: =1-J3 -> 0.81 | J3: 0.19
B4: Perdita iniziale | E4: =B3 -> 0.5 | I4: Perdita iniziale | L4: =I3 -> 0.81
A6: CONG | B6: NON VITALI | C6: VITALI
B7: =1-C7 -> 0.77 | C7: 0.23
B8: Perdita congelamento con crioprotettore | E8: =(C3-C7)/C3 -> 0.54

Sheet PROCESSO 1 EUBIOME
A1: Burz et al., 2019, SIMULAZIONE PROCESSO EUBIOME | G1: DATI PRODUZIONE
A2: FECI | B2: NON VITALI | C2: VITALI | G2: FECI | H2: NON VITALI | I2: VITALI
B3: 0.25 | C3: 0.75
B4: Perdita iniziale | E4: 0.25
A6: PRIMO CONG | B6: NON VITALI | C6: VITALI | G6: PRIMO CONG
B7: 0.7 | C7: 0.3
B8: Perdita congelamento senza crioprotettore | E8: 0.6
A10: DOPPIO CONG | B10: NON VITALI | C10: VITALI | G10: DOPPIO CONG | H10: NON VITALI | I10: VITALI | J10: TOTALI
B11: 0.76 | C11: 0.24 | H11: =8.4*10^9 -> 8400000000 | I11: =1.9*10^9 -> 1900000000 | J11: =SUM(H11:I11) -> 10300000000 | K11: CFU/ml
B12: Perdita congelamento con crioprotettore | E12: 0.2 | H12: =H11*100/J11 -> 81.55339806 | I12: =I11*100/J11 -> 18.44660194
A14: LIO | B14: NON VITALI | C14: VITALI | G14: LIO | H14: NON VITALI | I14: VITALI | J14: TOTALI
B15: 0.84 | C15: 0.16 | H15: =1.1*10^10 -> 11000000000 | I15: =1.4*10^9 -> 1400000000 | J15: =SUM(H15:I15) -> 12400000000 | K15: CFU/g
B16: Perdita liofilizzazione con crioprotettore | E16: 0.3333333333 | H16: =H15*100/J15 -> 88.70967742 | I16: =I15*100/J15 -> 11.29032258
A19: 10 MESI T° AMB | B19: NON VITALI | C19: VITALI
B20: 0.9 | C20: 0.1
B21: 0.88 | C21: 0.12 | L21: ANIMAL BIOME | M21: NON VITALI | N21: VITALI | O21: TOTALI
B22: Perdita stoccaggio 10 mesi | E22: 0.375 | M22: =6.5*10^9 -> 6500000000 | N22: =5.5*10^7 -> 55000000 | O22: =SUM(M22:N22) -> 6555000000
E23: 0.25 | M23: =M22*100/O22 -> 99.16094584 | N23: =N22*100/O22 -> 0.8390541571
